fUST/lending_fUST_20240721
["ID","MTS","AMOUNT","RATE_DAILY","PERIOD"]
[332755690,1721505041932,-688.02,0.00013698,2]
[332755691,1721505041942,-500.0,0.00013698,2]
[332755692,1721505041951,-1930.7,0.00013698,2]
[332755693,1721505041960,-500.0,0.00013698,2]
[332755694,1721505041973,-500.0,0.00013698,2]
[332755695,1721505041983,-500.0,0.00013698,2]
[332755696,1721505041994,-514.32357617,0.00013698,2]
[332755697,1721505042004,-505.54319834,0.00013698,2]
[332755698,1721505042015,-500.0,0.00013698,2]
[332755699,1721505042024,-500.0,0.00013698,2]
[332755700,1721505042034,-500.0,0.00013698,2]
[332755701,1721505042044,-612.0,0.00013698,2]
[332755702,1721505042053,-500.0,0.00013698,2]
[332755703,1721505042063,-1006.7,0.00013698,2]
[332755704,1721505042073,-583.96,0.00013698,2]
[332755705,1721505042084,-500.0,0.00013698,2]
[332755706,1721505042094,-560.63,0.00013698,2]
[332755707,1721505042103,-500.0,0.00013698,2]
[332755708,1721505042113,-504.38908166,0.00013698,2]
[332755709,1721505042123,-501.71905467,0.00013698,2]
[332755710,1721505042132,-500.0,0.00013698,2]
[332755711,1721505042142,-535.04,0.00013698,2]
[332755712,1721505042152,-502.8377914,0.00013698,2]
[332755713,1721505042164,-500.0,0.00013698,2]
[332755714,1721505042174,-897.56,0.00013698,2]
[332755715,1721505042184,-500.0,0.00013698,2]
[332755716,1721505042194,-1282.95,0.00013698,2]
[332755717,1721505042204,-500.0,0.00013698,2]
[332755718,1721505042214,-500.0,0.00013698,2]
[332755719,1721505042224,-500.0,0.00013698,2]
[332755720,1721505042234,-1811.52,0.00013698,2]
[332755721,1721505042244,-500.0,0.00013698,2]
[332755722,1721505042254,-825.74,0.00013698,2]
[332755723,1721505042266,-500.0,0.00013698,2]
[332755724,1721505042276,-1351.75,0.00013698,2]
[332755725,1721505042285,-500.0,0.00013698,2]
[332755726,1721505042296,-582.28461375,0.00013698,2]
[332755727,1721505042307,-500.0,0.00013698,2]
[332755728,1721505042317,-500.0,0.00013698,2]
[332755729,1721505042327,-732.38,0.00013698,2]
[332755730,1721505042338,-515.12988625,0.00013698,2]
[332755731,1721505042349,-2620.27,0.00013698,2]
[332755732,1721505042358,-546.65,0.00013698,2]
[332755733,1721505042370,-779.56,0.00013698,2]
[332755734,1721505042379,-1804.4,0.00013698,2]
[332755735,1721505042392,-500.0,0.00013698,2]
[332755736,1721505042404,-611.66,0.00013698,2]
[332755737,1721505042415,-1766.9,0.00013698,2]
[332755738,1721505042424,-500.0,0.00013698,2]
[332755739,1721505042435,-506.666072,0.00013698,2]
[332755740,1721505042444,-500.0,0.00013698,2]
[332755741,1721505042453,-500.0,0.00013698,2]
[332755742,1721505042462,-500.0,0.00013698,2]
[332755743,1721505042473,-500.0,0.00013698,2]
[332755744,1721505042482,-2146.19,0.00013698,2]
[332755745,1721505042492,-500.0,0.00013698,2]
[332755746,1721505042501,-500.0,0.00013698,2]
[332755747,1721505042512,-500.0,0.00013698,2]
[332755748,1721505042521,-500.0,0.00013698,2]
[332755749,1721505042531,-500.0,0.00013698,2]
[332755750,1721505042542,-500.0,0.00013698,2]
[332755751,1721505042552,-1717.99,0.00013698,2]
[332755752,1721505042563,-500.0,0.00013698,2]
[332755753,1721505042572,-465.25885834,0.00013698,2]
[332755754,1721505042581,-2168.23,0.00013698,2]
[332755755,1721505042590,-503.04863189,0.00013698,2]
[332755756,1721505042600,-509.288735,0.00013698,2]
[332755757,1721505042609,-517.43758687,0.00013698,2]
[332755758,1721505042619,-500.0,0.00013698,2]
[332755759,1721505042628,-2063.58,0.00013698,2]
[332755760,1721505042638,-500.90625531,0.00013698,2]
[332755761,1721505042650,-500.0,0.00013698,2]
[332755762,1721505042660,-1393.65,0.00013698,2]
[332755763,1721505042670,-500.0,0.00013698,2]
[332755764,1721505042679,-908.99,0.00013698,2]
[332755765,1721505042689,-500.0,0.00013698,2]
[332755766,1721505042700,-500.0,0.00013698,2]
[332755767,1721505042710,-541.46,0.00013698,2]
[332755768,1721505042720,-982.46,0.00013698,2]
[332755769,1721505042731,-500.0,0.00013698,2]
[332755770,1721505042740,-505.93712617,0.00013698,2]
[332755771,1721505042750,-505.36147925,0.00013698,2]
[332755772,1721505042760,-500.0,0.00013698,2]
[332755773,1721505042770,-500.0,0.00013698,2]
[332755774,1721505042781,-500.0,0.00013698,2]
[332755775,1721505042790,-500.0,0.00013698,2]
[332755776,1721505042801,-500.0,0.00013698,2]
[332755777,1721505042813,-500.0,0.00013698,2]
[332755778,1721505042824,-721.38,0.00013698,2]
[332755779,1721505042834,-500.0,0.00013698,2]
[332755780,1721505042844,-500.0,0.00013698,2]
[332755781,1721505042856,-500.0,0.00013698,2]
[332755782,1721505042866,-500.0,0.00013698,2]
[332755783,1721505042876,-500.0,0.00013698,2]
[332755785,1721505042886,-500.0,0.00013698,2]
[332755787,1721505042897,-273.70156827,0.00013698,2]
[332755788,1721505042908,-500.0,0.00013698,2]
[332755789,1721505042917,-514.86963877,0.00013698,2]
[332755790,1721505042928,-500.0,0.00013698,2]
[332755791,1721505042938,-500.0,0.00013698,2]
[332755792,1721505042947,-502.06952761,0.00013698,2]
[332755793,1721505042956,-500.0,0.00013698,2]
[332755794,1721505042967,-1494.97,0.00013698,2]
[332755795,1721505042978,-500.0,0.00013698,2]
[332755796,1721505042987,-500.0,0.00013698,2]
[332755799,1721505042998,-500.0,0.00013698,2]
[332755801,1721505043008,-548.2092026,0.00013698,2]
[332755803,1721505043018,-500.0,0.00013698,2]
[332755804,1721505043028,-1367.5,0.00013698,2]
[332755805,1721505043037,-500.0,0.00013698,2]
[332755806,1721505043046,-500.0,0.00013698,2]
[332755807,1721505043057,-763.32,0.00013698,2]
[332755808,1721505043067,-500.0,0.00013698,2]
[332755809,1721505043077,-548.75997375,0.00013698,2]
[332755810,1721505043086,-500.0,0.00013698,2]
[332755811,1721505043096,-518.04290527,0.00013698,2]
[332755812,1721505043107,-921.43,0.00013698,2]
[332755813,1721505043119,-571.89745073,0.00013698,2]
[332755814,1721505043129,-1791.92,0.00013698,2]
[332755815,1721505043138,-500.0,0.00013698,2]
[332755817,1721505043148,-980.39,0.00013698,2]
[332755819,1721505043157,-501.15558744,0.00013698,2]
[332755820,1721505043168,-345.18233406,0.00013698,2]
[332755827,1721505043177,-500.0,0.00013698,2]
[332755828,1721505043344,-500.0,0.00013698,2]
[332755829,1721505043355,-568.38256445,0.00013698,2]
[332755830,1721505043365,-724.24,0.00013698,2]
[332755832,1721505043375,-500.0,0.00013698,2]
[332755834,1721505043386,-533.02,0.00013698,2]
[332755836,1721505043400,-1003.63,0.00013698,2]
[332755837,1721505043410,-508.09294628,0.00013698,2]
[332755838,1721505043420,-500.3265989,0.00013698,2]
[332755840,1721505043431,-1566.01,0.00013698,2]
[332755842,1721505043440,-500.0,0.00013698,2]
[332755844,1721505043451,-500.0,0.00013698,2]
[332755846,1721505043462,-699.32,0.00013698,2]
[332755847,1721505043472,-500.0,0.00013698,2]
[332755849,1721505043485,-500.0,0.00013698,2]
[332755850,1721505043494,-912.49,0.00013698,2]
[332755851,1721505043504,-856.09,0.00013698,2]
[332755852,1721505043514,-500.0,0.00013698,2]
[332755853,1721505043524,-2074.95,0.00013698,2]
[332755854,1721505043534,-2248.5,0.00013698,2]
[332755856,1721505043544,-500.0,0.00013698,2]
[332755858,1721505043554,-500.0,0.00013698,2]
[332755860,1721505043564,-500.0,0.00013698,2]
[332755862,1721505043573,-500.0,0.00013698,2]
[332755863,1721505043582,-500.0,0.00013698,2]
[332755864,1721505043592,-500.0,0.00013698,2]
[332755865,1721505043601,-500.0,0.00013698,2]
[332755866,1721505043611,-500.0,0.00013698,2]
[332755867,1721505043621,-524.86017018,0.00013698,2]
[332755868,1721505043631,-763.71,0.00013698,2]
[332755869,1721505043640,-1193.56,0.00013698,2]
[332755870,1721505043650,-503.08189526,0.00013698,2]
[332755871,1721505043660,-500.0,0.00013698,2]
[332755872,1721505043671,-3088.33,0.00013698,2]
[332755873,1721505043682,-500.0,0.00013698,2]
[332755874,1721505043695,-500.0,0.00013698,2]
[332755875,1721505043707,-500.0,0.00013698,2]
[332755876,1721505043718,-500.0,0.00013698,2]
[332755877,1721505043730,-9974.88,0.00013698,2]
[332755878,1721505043741,-500.0,0.00013698,2]
[332755879,1721505043752,-1001.96,0.00013698,2]
[332755880,1721505043762,-500.0,0.00013698,2]
[332755881,1721505043773,-762.0,0.00013698,2]
[332755882,1721505043783,-571.49,0.00013698,2]
[332755883,1721505043793,-1334.16,0.00013698,2]
[332755884,1721505043803,-502.26881878,0.00013698,2]
[332755885,1721505043812,-682.11,0.00013698,2]
[332755886,1721505043822,-500.0,0.00013698,2]
[332755887,1721505043832,-500.0,0.00013698,2]
[332755888,1721505043842,-500.0,0.00013698,2]
[332755889,1721505043851,-500.0,0.00013698,2]
[332755890,1721505043861,-1088.36,0.00013698,2]
[332755891,1721505043871,-500.0,0.00013698,2]
[332755892,1721505043881,-500.0,0.00013698,2]
[332755893,1721505043892,-500.0,0.00013698,2]
[332755894,1721505043902,-500.0,0.00013698,2]
[332755895,1721505043914,-500.0,0.00013698,2]
[332755896,1721505043925,-501.77387035,0.00013698,2]
[332755897,1721505043934,-500.0,0.00013698,2]
[332755898,1721505043944,-500.0,0.00013698,2]
[332755899,1721505043954,-500.0,0.00013698,2]
[332755900,1721505043963,-500.0,0.00013698,2]
[332755901,1721505043973,-500.0,0.00013698,2]
[332755902,1721505043983,-500.0,0.00013698,2]
[332755903,1721505043993,-615.43055674,0.00013698,2]
[332755904,1721505044002,-500.0,0.00013698,2]
[332755905,1721505044012,-769.49,0.00013698,2]
[332755906,1721505044021,-500.7278879,0.00013698,2]
[332755907,1721505044030,-500.0,0.00013698,2]
[332755908,1721505044039,-9972.16,0.00013698,2]
[332755909,1721505044048,-500.0,0.00013698,2]
[332755910,1721505044058,-4842.68,0.00013698,2]
[332755911,1721505044067,-500.0,0.00013698,2]
[332755912,1721505044076,-500.0,0.00013698,2]
[332755913,1721505044086,-500.0,0.00013698,2]
[332755914,1721505044095,-501.88237339,0.00013698,2]
[332755915,1721505044104,-812.17,0.00013698,2]
[332755916,1721505044114,-653.11,0.00013698,2]
[332755917,1721505044123,-3611.41,0.00013698,2]
[332755918,1721505044133,-456.093618,0.00013698,2]
[332755919,1721505044142,-500.0,0.00013698,2]
[332755920,1721505044152,-502.92442484,0.00013698,2]
[332755921,1721505044161,-500.0,0.00013698,2]
[332755922,1721505044170,-500.0,0.00013698,2]
[332755923,1721505044180,-649.13,0.00013698,2]
[332755924,1721505044191,-518.49437446,0.00013698,2]
[332755925,1721505044201,-500.0,0.00013698,2]
[332755926,1721505044212,-500.0,0.00013698,2]
[332755927,1721505044224,-919.91,0.00013698,2]
[332755928,1721505044233,-502.86855471,0.00013698,2]
[332755929,1721505044243,-1534.22,0.00013698,2]
[332755930,1721505044252,-500.08985855,0.00013698,2]
[332755931,1721505044261,-500.0,0.00013698,2]
[332755932,1721505044270,-500.0,0.00013698,2]
[332755933,1721505044279,-500.0,0.00013698,2]
[332755934,1721505044289,-500.0,0.00013698,2]
[332755935,1721505044298,-647.58,0.00013698,2]
[332755936,1721505044307,-848.62,0.00013698,2]
[332755937,1721505044318,-500.0,0.00013698,2]
[332755938,1721505044328,-500.0,0.00013698,2]
[332755939,1721505044338,-1118.49,0.00013698,2]
[332755940,1721505044348,-500.0,0.00013698,2]
[332755941,1721505044358,-2182.76,0.00013698,2]
[332755942,1721505044368,-3568.54,0.00013698,2]
[332755943,1721505044377,-922.66,0.00013698,2]
[332755944,1721505044387,-1292.27,0.00013698,2]
[332755945,1721505044398,-500.0,0.00013698,2]
[332755946,1721505044408,-500.0,0.00013698,2]
[332755947,1721505044418,-500.0,0.00013698,2]
[332755948,1721505044427,-500.0,0.00013698,2]
[332755949,1721505044436,-500.0,0.00013698,2]
[332755950,1721505044445,-601.56,0.00013698,2]
[332755951,1721505044454,-1615.36,0.00013698,2]
[332755952,1721505044464,-2356.17,0.00013698,2]
[332755953,1721505044473,-9525.09,0.00013698,2]
[332755954,1721505044482,-500.0,0.00013698,2]
[332755955,1721505044492,-500.0,0.00013698,2]
[332755956,1721505044501,-501.29419541,0.00013698,2]
[332755957,1721505044511,-500.0,0.00013698,2]
[332755958,1721505044521,-500.0,0.00013698,2]
[332755959,1721505044530,-596.66,0.00013698,2]
[332755960,1721505044540,-500.0,0.00013698,2]
[332755961,1721505044549,-1164.01,0.00013698,2]
[332755962,1721505044559,-505.7857432,0.00013698,2]
[332755963,1721505044569,-5614.66,0.00013698,2]
[332755964,1721505044578,-1336.36,0.00013698,2]
[332755965,1721505044588,-500.0,0.00013698,2]
[332755966,1721505044599,-500.0,0.00013698,2]
[332755967,1721505044608,-500.0,0.00013698,2]
[332755968,1721505044618,-500.0,0.00013698,2]
[332755969,1721505044627,-500.0,0.00013698,2]
[332755970,1721505044637,-503.42,0.00013698,2]
[332755971,1721505044648,-503.42,0.00013698,2]
[332755972,1721505044658,-503.42,0.00013698,2]
[332755973,1721505044667,-503.42,0.00013698,2]
[332755974,1721505044678,-503.42,0.00013698,2]
[332755975,1721505044689,-503.42,0.00013698,2]
[332755976,1721505044698,-503.42,0.00013698,2]
[332755977,1721505044707,-2230.68,0.00013698,2]
[332755978,1721505044716,-503.42,0.00013698,2]
[332755979,1721505044725,-503.42,0.00013698,2]
[332755980,1721505044735,-503.42,0.00013698,2]
[332755981,1721505044746,-503.42,0.00013698,2]
[332755982,1721505044756,-503.42,0.00013698,2]
[332755983,1721505044766,-503.42,0.00013698,2]
[332755984,1721505044775,-503.42,0.00013698,2]
[332755985,1721505044784,-503.42,0.00013698,2]
[332755986,1721505044794,-2974.58,0.00013698,2]
[332755987,1721505044803,-503.42,0.00013698,2]
[332755988,1721505044813,-503.42,0.00013698,2]
[332755989,1721505044823,-503.42,0.00013698,2]
[332755990,1721505044833,-503.42,0.00013698,2]
[332755991,1721505044842,-503.42,0.00013698,2]
[332755992,1721505044852,-5451.22,0.00013698,2]
[332755993,1721505044862,-500.0,0.00013698,2]
[332755994,1721505044872,-503.42,0.00013698,2]
[332755995,1721505044882,-500.0,0.00013698,2]
[332755996,1721505044893,-503.42,0.00013698,2]
[332755997,1721505044904,-503.42,0.00013698,2]
[332755998,1721505044914,-503.52640636,0.00013698,2]
[332755999,1721505044924,-500.0,0.00013698,2]
[332756000,1721505044934,-500.0,0.00013698,2]
[332756001,1721505044944,-505.99,0.00013698,2]
[332756002,1721505044953,-660.13,0.00013698,2]
[332756003,1721505044964,-500.0,0.00013698,2]
[332756004,1721505044974,-500.0,0.00013698,2]
[332756005,1721505044984,-500.0,0.00013698,2]
[332756006,1721505044995,-2479.41,0.00013698,2]
[332756007,1721505045006,-500.0,0.00013698,2]
[332756008,1721505045016,-650.96,0.00013698,2]
[332756009,1721505045026,-3826.08,0.00013698,2]
[332756010,1721505045037,-7347.6,0.00013698,2]
[332756011,1721505045047,-4593.9,0.00013698,2]
[332756012,1721505045057,-500.0,0.00013698,2]
[332756013,1721505045067,-501.52214706,0.00013698,2]
[332756014,1721505045077,-500.0,0.00013698,2]
[332756015,1721505045087,-500.0,0.00013698,2]
[332756016,1721505045097,-500.0,0.00013698,2]
[332756017,1721505045107,-2007.77,0.00013698,2]
[332756018,1721505045117,-500.0,0.00013698,2]
[332756019,1721505045127,-500.0,0.00013698,2]
[332756020,1721505045137,-500.0,0.00013698,2]
[332756021,1721505045149,-500.0,0.00013698,2]
[332756022,1721505045159,-504.38,0.00013698,2]
[332756023,1721505045168,-500.0,0.00013698,2]
[332756024,1721505045180,-659.36,0.00013698,2]
[332756025,1721505045189,-500.0,0.00013698,2]
[332756026,1721505045199,-500.0,0.00013698,2]
[332756027,1721505045207,-500.0,0.00013698,2]
[332756028,1721505045217,-500.0,0.00013698,2]
[332756029,1721505045226,-500.0,0.00013698,2]
[332756030,1721505045235,-1536.2,0.00013698,2]
[332756031,1721505045244,-500.0,0.00013698,2]
[332756032,1721505045254,-601.4404759,0.00013698,2]
[332756033,1721505045264,-500.0,0.00013698,2]
[332756034,1721505045274,-694.69,0.00013698,2]
[332756035,1721505045284,-585.32,0.00013698,2]
[332756036,1721505045293,-500.0,0.00013698,2]
[332756037,1721505045302,-150.0,0.00013698,2]
[332756038,1721505045312,-4967.36,0.00013698,2]
[332756039,1721505045321,-500.0,0.00013698,2]
[332756040,1721505045331,-11096.32,0.00013698,2]
[332756041,1721505045341,-646.05085239,0.00013698,2]
[332756042,1721505045351,-1077.09,0.00013698,2]
[332756043,1721505045361,-500.0,0.00013698,2]
[332756044,1721505045370,-500.0,0.00013698,2]
[332756045,1721505045379,-500.0,0.00013698,2]
[332756046,1721505045389,-1034.45,0.00013698,2]
[332756047,1721505045403,-774.12,0.00013698,2]
[332756048,1721505045413,-500.0,0.00013698,2]
[332756049,1721505045423,-500.0,0.00013698,2]
[332756050,1721505045433,-500.0,0.00013698,2]
[332756051,1721505045443,-2632.34,0.00013698,2]
[332756052,1721505045452,-500.0,0.00013698,2]
[332756053,1721505045462,-972.5,0.00013698,2]
[332756054,1721505045472,-500.0,0.00013698,2]
[332756055,1721505045482,-505.79508747,0.00013698,2]
[332756056,1721505045491,-500.0,0.00013698,2]
[332756057,1721505045500,-500.0,0.00013698,2]
[332756058,1721505045510,-501.3438523,0.00013698,2]
[332756059,1721505045519,-509.82043443,0.00013698,2]
[332756060,1721505045530,-500.0,0.00013698,2]
[332756061,1721505045539,-535.13087164,0.00013698,2]
[332756062,1721505045550,-500.0,0.00013698,2]
[332756063,1721505045559,-573.91,0.00013698,2]
[332756064,1721505045569,-550.13,0.00013698,2]
[332756065,1721505045579,-500.0,0.00013698,2]
[332756066,1721505045588,-500.0,0.00013698,2]
[332756067,1721505045598,-500.0,0.00013698,2]
[332756068,1721505045607,-500.0,0.00013698,2]
[332756069,1721505045616,-500.0,0.00013698,2]
[332756070,1721505045626,-18390.94,0.00013698,2]
[332756071,1721505045636,-500.0,0.00013698,2]
[332756072,1721505045646,-505.46201646,0.00013698,2]
[332756073,1721505045656,-2011.6,0.00013698,2]
[332756074,1721505045666,-508.40747236,0.00013698,2]
[332756075,1721505045675,-500.0,0.00013698,2]
[332756076,1721505045686,-2737.23,0.00013698,2]
[332756077,1721505045696,-500.0,0.00013698,2]
[332756078,1721505045705,-1149.23,0.00013698,2]
[332756079,1721505045716,-500.0,0.00013698,2]
[332756080,1721505045727,-734.21,0.00013698,2]
[332756081,1721505045737,-276.89937302,0.00013698,2]
[332756082,1721505045747,-500.0,0.00013698,2]
[332756083,1721505045757,-500.0,0.00013698,2]
[332756084,1721505045766,-500.0,0.00013698,2]
[332756085,1721505045820,-500.0,0.00013698,2]
[332756086,1721505045831,-500.0,0.00013698,2]
[332756088,1721505045840,-3104.21,0.00013698,2]
[332756090,1721505045850,-500.0,0.00013698,2]
[332756091,1721505045860,-500.0,0.00013698,2]
[332756092,1721505045870,-3104.21,0.00013698,2]
[332756093,1721505045881,-500.0,0.00013698,2]
[332756094,1721505045891,-3104.21,0.00013698,2]
[332756095,1721505045902,-500.0,0.00013698,2]
[332756096,1721505045914,-3104.21,0.00013698,2]
[332756097,1721505045923,-3104.21,0.00013698,2]
[332756098,1721505045934,-500.0,0.00013698,2]
[332756099,1721505045943,-3104.21,0.00013698,2]
[332756101,1721505045953,-3104.21,0.00013698,2]
[332756102,1721505045963,-500.0,0.00013698,2]
[332756103,1721505045974,-500.0,0.00013698,2]
[332756104,1721505045984,-3104.21,0.00013698,2]
[332756105,1721505045994,-500.0,0.00013698,2]
[332756106,1721505046004,-3104.21,0.00013698,2]
[332756107,1721505046014,-500.0,0.00013698,2]
[332756108,1721505046023,-500.0,0.00013698,2]
[332756109,1721505046033,-3104.21,0.00013698,2]
[332756110,1721505046042,-219.09698425,0.00013698,2]
[332756111,1721505046052,-3104.21,0.00013698,2]
[332756112,1721505046061,-500.0,0.00013698,2]
[332756114,1721505046071,-3104.21,0.00013698,2]
[332756116,1721505046080,-3104.21,0.00013698,2]
[332756117,1721505046089,-3104.21,0.00013698,2]
[332756118,1721505046098,-3104.21,0.00013698,2]
[332756119,1721505046108,-500.0,0.00013698,2]
[332756120,1721505046117,-3104.21,0.00013698,2]
[332756121,1721505046127,-500.0,0.00013698,2]
[332756122,1721505046137,-3104.21,0.00013698,2]
[332756123,1721505046147,-3104.21,0.00013698,2]
[332756124,1721505046157,-500.0,0.00013698,2]
[332756125,1721505046166,-3104.21,0.00013698,2]
[332756126,1721505046175,-3104.21,0.00013698,2]
[332756127,1721505046185,-3104.21,0.00013698,2]
[332756128,1721505046194,-3104.21,0.00013698,2]
[332756129,1721505046203,-3104.21,0.00013698,2]
[332756130,1721505046214,-3104.37919494,0.00013698,2]
[332756131,1721505046223,-4261.58,0.00013698,2]
[332756132,1721505046233,-4261.58,0.00013698,2]
[332756133,1721505046242,-4261.58,0.00013698,2]
[332756134,1721505046251,-4261.58,0.00013698,2]
[332756135,1721505046261,-4261.58,0.00013698,2]
[332756136,1721505046270,-211.01050047,0.00013698,2]
[332756138,1721505046280,-4261.58,0.00013698,2]
[332756140,1721505046289,-3008.42,0.00013698,2]
[332756141,1721505046299,-4261.58,0.00013698,2]
[332756143,1721505046309,-500.0,0.00013698,2]
[332756145,1721505046319,-4261.58,0.00013698,2]
[332756146,1721505046329,-4261.58,0.00013698,2]
[332756147,1721505046338,-4261.58,0.00013698,2]
[332756148,1721505046349,-4261.58,0.00013698,2]
[332756149,1721505046361,-1294.05,0.00013698,2]
[332756150,1721505046371,-504.74873459,0.00013698,2]
[332756152,1721505046380,-4261.58,0.00013698,2]
[332756154,1721505046389,-4261.58,0.00013698,2]
[332756156,1721505046401,-4261.58,0.00013698,2]
[332756158,1721505046412,-500.0,0.00013698,2]
[332756159,1721505046421,-4261.58,0.00013698,2]
[332756161,1721505046430,-4261.58,0.00013698,2]
[332756163,1721505046440,-4261.58,0.00013698,2]
[332756165,1721505046450,-4261.58,0.00013698,2]
[332756166,1721505046460,-500.0,0.00013698,2]
[332756167,1721505046470,-4261.58,0.00013698,2]
[332756168,1721505046482,-4261.58,0.00013698,2]
[332756169,1721505046491,-191.2377236,0.00013698,2]
[332756170,1721505046500,-4261.58,0.00013698,2]
[332756171,1721505046510,-4261.58,0.00013698,2]
[332756172,1721505046519,-539.26,0.00013698,2]
[332756173,1721505046528,-4261.58,0.00013698,2]
[332756174,1721505046537,-4261.75102389,0.00013698,2]
[332756175,1721505046546,-500.0,0.00013698,2]
[332756176,1721505046555,-500.0,0.00013698,2]
[332756177,1721505046564,-500.0,0.00013698,2]
[332756178,1721505046574,-533.97409384,0.00013698,2]
[332756179,1721505046583,-484.1569262,0.00013698,2]
[332756180,1721505046593,-500.0,0.00013698,2]
[332756181,1721505046602,-1214.52,0.00013698,2]
[332756182,1721505046611,-500.0,0.00013698,2]
[332756183,1721505046622,-1089.64,0.00013698,2]
[332756184,1721505046631,-500.0,0.00013698,2]
[332756185,1721505046640,-261.30972445,0.00013698,2]
[332756186,1721505046650,-500.0,0.00013698,2]
[332756187,1721505046660,-500.0,0.00013698,2]
[332756188,1721505046669,-500.0,0.00013698,2]
[332756190,1721505046679,-1546.82,0.00013698,2]
[332756192,1721505046688,-902.47,0.00013698,2]
[332756194,1721505046697,-3023.06,0.00013698,2]
[332756195,1721505046706,-500.0,0.00013698,2]
[332756196,1721505046715,-500.0,0.00013698,2]
[332756197,1721505046724,-500.0,0.00013698,2]
[332756198,1721505046734,-3110.77,0.00013698,2]
[332756200,1721505046743,-1528.42,0.00013698,2]
[332756201,1721505046752,-652.79,0.00013698,2]
[332756202,1721505046762,-500.0,0.00013698,2]
[332756203,1721505046772,-500.0,0.00013698,2]
[332756204,1721505046782,-985.43,0.00013698,2]
[332756205,1721505046791,-500.0,0.00013698,2]
[332756206,1721505046801,-503.98,0.00013698,2]
[332756207,1721505046810,-34870.39,0.00013698,2]
[332756208,1721505046819,-1681.8,0.00013698,2]
[332756209,1721505046828,-500.0,0.00013698,2]
[332756210,1721505046837,-500.0,0.00013698,2]
[332756212,1721505046846,-500.0,0.00013698,2]
[332756213,1721505046855,-500.0,0.00013698,2]
[332756214,1721505046865,-500.0,0.00013698,2]
[332756215,1721505046874,-2275.11,0.00013698,2]
[332756216,1721505046884,-3002.39,0.00013698,2]
[332756217,1721505046893,-504.76781749,0.00013698,2]
[332756218,1721505046903,-529.69,0.00013698,2]
[332756219,1721505046913,-524.74,0.00013698,2]
[332756220,1721505046923,-193.47418578,0.00013698,2]
[332756221,1721505046932,-500.0,0.00013698,2]
[332756222,1721505046941,-500.0,0.00013698,2]
[332756223,1721505046950,-500.0,0.00013698,2]
[332756224,1721505046959,-2713.63,0.00013698,2]
[332756225,1721505046969,-500.0,0.00013698,2]
[332756226,1721505046978,-500.0,0.00013698,2]
[332756227,1721505046987,-500.0,0.00013698,2]
[332756228,1721505046996,-500.0,0.00013698,2]
[332756229,1721505047006,-500.0,0.00013698,2]
[332756230,1721505047015,-500.0,0.00013698,2]
[332756231,1721505047024,-500.0,0.00013698,2]
[332756232,1721505047033,-270.43895219,0.00013698,2]
[332756233,1721505047042,-500.0,0.00013698,2]
[332756234,1721505047051,-2585.51,0.00013698,2]
[332756235,1721505047060,-14895.23,0.00013698,2]
[332756236,1721505047070,-785.89,0.00013698,2]